bitfinex/quotes_ETHUSD_20240713
["timestamp","ask_amount","ask_price","bid_price","bid_amount"]
[1720838632296,1.33259496,3133.1,3133.0,3.05028]
[1720838632455,1.10573904,3133.1,3133.0,3.05028]
[1720838634897,1.10571423,3133.1,3133.0,3.05028]
[1720838635092,1.33275283,3133.2,3133.0,3.05028]
[1720838635296,2.43847529,3133.1,3133.0,3.05028]
[1720838635491,1.10572246,3133.1,3133.0,0.816]
[1720838635810,2.43847529,3133.1,3133.0,0.816]
[1720838637317,2.43847529,3133.1,3132.7,2.39445]
[1720838637612,1.33288887,3132.9,3132.8,0.816]
[1720838637797,2.77166349,3132.9,3132.8,0.816]
[1720838637999,1.10572246,3132.9,3132.8,0.816]
[1720838638190,1.10572246,3133.0,3132.8,0.816]
[1720838638388,2.3669,3133.1,3132.8,0.816]
[1720838638603,1.10589767,3132.9,3132.8,0.816]
[1720838639220,2.77193058,3132.9,3132.8,0.816]
[1720838639383,1.10589767,3132.9,3132.8,0.816]
[1720838639779,1.10589767,3132.9,3132.7,0.16]
[1720838640013,2.7719986,3132.8,3132.7,0.16]
[1720838641012,1.66609249,3132.8,3132.7,0.16]
[1720838641278,2.77209178,3132.8,3132.7,0.30905051]
[1720838641480,2.21188098,3132.8,3132.7,0.30905051]
[1720838641795,3.87803358,3132.8,3132.7,0.30905051]
[1720838643130,3.87803358,3132.8,3132.7,0.16]
[1720838643293,2.77211158,3132.8,3132.7,0.16]
[1720838643498,3.87804795,3132.8,3132.7,0.16]
[1720838644414,2.77211932,3132.8,3132.7,0.16]
[1720838644622,3.87805478,3132.8,3132.7,0.16]
[1720838645512,3.54487723,3132.8,3132.7,0.16]
[1720838645910,2.21187595,3132.8,3132.7,0.30913908]
[1720838646286,3.54487723,3132.8,3132.7,0.30913908]
[1720838646637,2.21187595,3132.8,3132.7,0.30913908]
[1720838647322,2.21187595,3132.8,3132.7,2.54362908]
[1720838647841,2.2117301,3132.8,3132.7,2.54362908]
[1720838648193,1.10578961,3132.8,3132.7,2.54362908]
[1720838648387,1.10578961,3132.8,3132.7,4.77811908]
[1720838649124,1.33300128,3133.0,3132.9,2.23435]
[1720838649444,2.43875833,3133.0,3132.9,3.05035]
[1720838649634,2.43875833,3133.0,3132.9,3.19939694]
[1720838649806,2.43916524,3133.0,3132.9,3.19939694]
[1720838649993,1.10575705,3133.0,3132.9,3.19939694]
[1720838650192,2.77224447,3133.0,3132.9,3.19939694]
[1720838650395,1.10575705,3133.0,3132.9,3.19939694]
[1720838650946,2.43930481,3133.0,3132.9,3.19939694]
[1720838651087,1.33354776,3133.0,3132.9,3.19939694]
[1720838651399,1.10574612,3133.0,3132.9,3.19939694]
[1720838653588,2.77261835,3133.0,3132.9,3.19939694]
[1720838654493,7.43,3133.6,3132.9,3.19939694]
[1720838654689,2.77327877,3133.0,3132.9,3.19939694]
[1720838654996,2.00097728,3133.3,3133.0,0.14895776]
[1720838655224,1.10577938,3133.2,3132.9,3.19939232]
[1720838655420,1.66761574,3133.0,3132.9,3.19939232]
[1720838655625,2.77339512,3133.0,3132.9,3.05035]
[1720838656434,1.10577938,3133.0,3132.9,3.74385059]
[1720838657044,1.10577938,3133.0,3132.9,3.19937459]
[1720838657791,2.3354,3133.5,3133.0,2.23428]
[1720838658042,1.66765024,3133.1,3133.0,2.23428]
[1720838658348,2.77339293,3133.1,3133.0,3.05028]
[1720838659804,1.10574269,3133.1,3133.0,5.28456]
[1720838660011,1.10574269,3133.1,3133.0,6.055166]
[1720838660207,1.10574269,3133.2,3133.1,4.4684]
[1720838660414,1.33419726,3133.4,3133.3,2.23406]
[1720838660606,2.43977132,3133.4,3133.3,3.05006]
[1720838661209,1.10558267,3133.4,3133.3,3.05006]
[1720838661406,2.4398484,3133.4,3133.3,3.05006]
[1720838661814,2.43984745,3133.4,3133.3,3.05006]
[1720838663431,1.10558267,3133.4,3133.3,3.05006]
[1720838663609,2.77334587,3133.4,3133.3,3.05006]
[1720838663814,1.10558267,3133.4,3133.3,3.05006]
[1720838664132,2.43976935,3133.4,3133.3,3.05006]
[1720838664330,1.10558267,3133.4,3133.3,3.05006]
[1720838664561,2.43973951,3133.4,3133.3,3.05006]
[1720838664937,1.33415721,3133.4,3133.3,3.05006]
[1720838665112,1.10558221,3133.4,3133.3,3.05006]
[1720838665714,2.77320982,3133.4,3133.3,3.05006]
[1720838667405,2.77320982,3133.4,3133.3,5.812539]
[1720838667739,1.33426957,3133.4,3133.3,8.140739]
[1720838667925,1.1056009,3133.4,3133.3,8.140739]
[1720838671031,7.43,3133.9,3133.4,2.23399]
[1720838671362,1.33445168,3133.5,3133.4,4.46798]
[1720838671663,1.66806461,3133.6,3133.5,2.38236564]
[1720838671857,2.77360666,3133.6,3133.5,2.23392]
[1720838672229,2.77360666,3133.6,3133.5,2.38236564]
[1720838674363,1.10554205,3133.6,3133.5,2.38236564]
[1720838674587,9.43270515,3133.9,3133.6,2.23378]
[1720838674873,1.10549288,3133.8,3133.7,0.816]
[1720838675164,1.10549288,3133.8,3133.7,0.96427658]
[1720838675457,3.10819803,3133.8,3133.7,0.96427658]
[1720838675631,1.10549288,3133.8,3133.7,0.96427658]
[1720838677134,1.10549288,3133.8,3133.7,3.19805658]
[1720838678075,3.10857017,3133.8,3133.7,3.19805658]
[1720838678440,3.10847138,3133.8,3133.7,3.19805658]
[1720838680253,1.10552863,3133.8,3133.7,3.19805658]
[1720838680757,3.10847138,3133.8,3133.7,3.19805658]
[1720838681063,1.10552863,3133.8,3133.7,3.19805658]
[1720838681275,1.10553727,3133.8,3133.7,3.19805658]
[1720838682571,1.10553727,3133.8,3133.7,5.43183658]
[1720838682796,2.7744076,3133.8,3133.7,5.97502624]
[1720838682960,2.44070286,3133.8,3133.7,8.40792624]
[1720838683161,1.10553727,3133.8,3133.7,8.40792624]
[1720838684578,1.33488938,3133.9,3133.8,4.4674]
[1720838684746,2.44027964,3133.9,3133.8,5.30817662]
[1720838685347,2.44027964,3133.9,3133.8,5.45631456]
[1720838686281,1.10539026,3133.9,3133.8,5.45631456]
[1720838686482,2.44027964,3133.9,3133.8,5.45631456]
[1720838687290,1.10539026,3133.9,3133.8,5.45631456]
[1720838687984,1.1053699,3133.9,3133.8,5.45631456]
[1720838688362,1.33470442,3134.0,3133.9,4.46726]
[1720838688558,2.44007321,3134.0,3133.9,5.97264177]
[1720838688747,1.10536879,3134.0,3133.9,5.97264177]
[1720838688950,1.10536879,3134.0,3133.9,6.12066825]
[1720838689866,1.33470442,3134.1,3134.0,4.46712]
[1720838690187,2.43999326,3134.1,3134.0,4.46712]
[1720838690348,2.43999326,3134.1,3134.0,4.61506197]
[1720838691049,1.33470442,3134.1,3134.0,4.61506197]
[1720838691478,2.44000332,3134.1,3134.0,4.61506197]
[1720838695995,3.5417989,3134.1,3134.0,2.38150197]
[1720838696288,4.22965699,3134.1,3134.0,0.14794197]
[1720838696493,3.12435809,3134.1,3134.0,0.14794197]
[1720838696789,2.4365,3134.1,3134.0,0.14794197]
[1720838697503,5.4365,3134.1,3134.0,0.14794197]
[1720838698456,7.66999,3134.1,3134.0,0.14794197]
[1720838700860,7.66999,3134.1,3133.5,0.816]
[1720838701061,7.66999,3134.1,3134.0,0.14789192]
[1720838701272,8.660324,3134.1,3134.0,0.14789192]
[1720838701518,8.660324,3134.1,3133.5,0.816]
[1720838701864,8.660324,3134.1,3133.7,0.816]
[1720838702891,8.660324,3134.1,3133.5,0.816]
[1720838703695,2.3324,3133.8,3133.0,2.23424]
[1720838703893,2.3324,3133.8,3133.3,0.816]
[1720838704296,2.3324,3133.8,3133.6,0.14823]
[1720838704477,2.3324,3133.8,3133.5,0.816]
[1720838704794,4.56615,3133.8,3133.5,0.816]
[1720838704993,0.679979,3133.7,3133.6,0.14823]
[1720838705186,0.679979,3133.7,3133.5,0.816]
[1720838705589,0.679979,3133.7,3133.6,0.14823]
[1720838706177,0.679979,3133.7,3133.5,0.816]
[1720838706591,1.10570664,3133.6,3133.5,0.816]
[1720838706894,1.97459386,3133.6,3133.5,0.816]
[1720838707514,1.10570664,3133.6,3133.5,0.816]
[1720838707812,1.10569019,3133.6,3133.5,0.816]
[1720838711522,1.10568419,3133.6,3133.5,0.816]
[1720838712024,1.10568507,3133.7,3133.5,0.816]
[1720838712211,3.10852422,3133.6,3133.5,0.816]
[1720838712823,1.10568507,3133.6,3133.5,0.816]
[1720838714525,1.10558797,3133.6,3133.5,0.816]
[1720838714720,1.10558797,3133.6,3133.5,3.04992]
[1720838714928,1.10558521,3133.6,3133.5,3.04992]
[1720838716398,1.10558521,3133.6,3133.5,3.19829383]
[1720838717096,3.10893892,3133.6,3133.5,3.19829383]
[1720838717297,1.10558521,3133.6,3133.5,3.19829383]
[1720838717593,3.10893892,3133.6,3133.5,3.19829383]
[1720838717798,1.10558521,3133.6,3133.5,3.19829383]
[1720838721728,12.7624,3134.1,3133.5,3.19829383]
[1720838722031,2.00320654,3133.7,3133.5,3.19829383]
[1720838722324,1.10558332,3133.6,3133.5,3.19829383]
[1720838724918,2.00315814,3133.7,3133.6,2.23385]
[1720838725096,12.7624,3134.1,3133.6,2.23385]
[1720838725299,3.44264518,3134.0,3133.7,0.96423863]
[1720838725532,1.10558745,3133.9,3133.7,0.96423863]
[1720838725705,1.10558745,3133.8,3133.7,0.96423863]
[1720838725913,1.10558745,3133.8,3133.7,0.816]
[1720838728502,10.43,3134.1,3133.7,0.816]
[1720838728704,1.10551049,3134.0,3133.9,0.816]
[1720838729208,3.10818155,3134.0,3133.9,0.96406959]
[1720838729624,1.10551049,3134.0,3133.9,0.96406959]
[1720838730106,3.10830615,3134.0,3133.9,0.96406959]
[1720838730533,3.10830615,3134.0,3133.9,0.816]
[1720838731537,1.10551049,3134.0,3133.9,0.816]
[1720838732042,1.10540831,3134.0,3133.9,3.04963]
[1720838732230,1.10540831,3134.0,3133.9,5.47493]
[1720838732431,0.33432261,3134.4,3134.0,2.23355]
[1720838732626,2.00316812,3134.1,3134.0,2.23355]
[1720838732939,3.10856744,3134.1,3134.0,3.19261277]
[1720838734144,1.10539932,3134.1,3134.0,0.14306277]
[1720838734313,1.10539932,3134.1,3134.0,0.95906277]
[1720838734503,1.10539932,3134.1,3134.0,0.816]
[1720838735141,1.10547191,3134.1,3134.0,0.816]
[1720838735440,1.1054764,3134.1,3134.0,0.95905199]
[1720838737538,3.44294972,3134.1,3134.0,0.95905199]
[1720838738041,1.1054764,3134.1,3134.0,0.95905199]
[1720838738243,3.44294972,3134.1,3134.0,0.95905199]
[1720838738813,3.4441433,3134.1,3134.0,0.95905199]
[1720838739134,3.44415514,3134.1,3134.0,0.95905199]
[1720838739663,3.44415514,3134.1,3134.0,0.14305199]
[1720838740339,1.10547096,3134.1,3133.8,3.0497]
[1720838740541,3.44508583,3134.0,3133.8,3.0497]
[1720838740724,1.10547096,3133.9,3133.8,3.0497]
[1720838742325,2.4248,3134.3,3133.8,3.0497]
[1720838742525,1.10548361,3133.9,3133.8,3.0497]
[1720838742749,2.4248,3134.3,3133.8,3.0497]
[1720838742952,2.34027739,3134.0,3133.8,3.0497]
[1720838743254,1.10549293,3133.9,3133.8,3.0497]
[1720838744014,1.10549293,3133.9,3133.8,0.816]
[1720838744220,3.44577032,3133.9,3133.7,0.816]
[1720838744436,1.10549293,3133.8,3133.7,0.816]
[1720838744818,3.44577032,3133.8,3133.7,0.816]
[1720838745221,1.10549293,3133.8,3133.7,0.816]
[1720838745421,2.34022663,3133.8,3133.7,0.816]
[1720838745622,2.3402229,3133.8,3133.7,0.816]
[1720838745991,3.44579851,3133.8,3133.7,0.816]
[1720838746421,3.44579851,3133.8,3133.7,0.95930632]
[1720838748483,1.10557561,3133.8,3133.7,0.95930632]
[1720838749061,2.34021331,3133.9,3133.7,0.95930632]
[1720838749245,1.10554556,3133.8,3133.7,0.95930632]
[1720838749448,3.44575887,3133.8,3133.7,0.95930632]
[1720838750864,1.10554556,3133.8,3133.7,0.95930632]
[1720838751088,1.10554556,3133.8,3133.7,1.27861795]
[1720838751720,3.44575887,3133.8,3133.7,0.95930632]
[1720838752385,2.23346,3134.2,3133.7,0.95930632]
[1720838752713,2.34083967,3133.8,3133.7,0.95930632]
[1720838752925,2.3408111,3133.9,3133.7,0.95930632]
[1720838753221,1.1055173,3133.8,3133.7,0.14330632]
[1720838753374,1.1055173,3133.8,3133.7,0.95930632]
[1720838754614,1.1055173,3133.8,3133.7,3.19308632]
[1720838755119,1.10552282,3133.8,3133.7,3.19308632]
[1720838755326,3.44664587,3133.8,3133.7,3.19308632]
[1720838755915,1.10551429,3133.8,3133.7,3.19308632]
[1720838756420,3.44671538,3133.8,3133.7,3.19308632]
[1720838757900,3.44671538,3133.8,3133.7,0.95930632]
[1720838759129,1.10551429,3133.8,3133.7,0.95930632]
[1720838759304,3.44717086,3133.8,3133.7,0.95930632]
[1720838759509,4.55268604,3133.8,3133.7,3.19308632]
[1720838761798,3.44715435,3133.8,3133.7,3.19308632]
[1720838762004,4.55269846,3133.8,3133.7,3.19308632]
[1720838762228,1.10551515,3133.8,3133.7,3.19308632]
[1720838762431,4.5527604,3133.8,3133.7,3.19308632]
[1720838763415,2.21106697,3133.8,3133.7,3.73578495]
[1720838763735,1.10551515,3133.8,3133.7,8.36396495]
[1720838763930,4.21828611,3133.8,3133.7,8.36396495]
[1720838764308,2.21093671,3133.8,3133.7,8.36396495]
[1720838764515,2.21093671,3133.8,3133.7,8.22065863]
[1720838764831,1.10551515,3133.8,3133.7,8.22065863]
[1720838765037,2.21087787,3133.8,3133.7,8.3639557]
[1720838765213,2.21087953,3133.8,3133.7,8.3639557]
[1720838765734,3.88350632,3133.8,3133.7,10.5977357]
[1720838768533,1.10551515,3133.8,3133.7,10.5977357]
[1720838768833,3.54892595,3133.8,3133.7,10.5977357]
[1720838769433,2.2108078,3133.8,3133.7,10.5977357]
[1720838769942,3.54892595,3133.8,3133.7,10.5977357]
[1720838770745,2.2108078,3133.8,3133.7,10.5977357]
[1720838771237,3.54853404,3133.8,3133.7,10.5977357]
[1720838771610,2.44301889,3133.8,3133.7,10.5977357]
[1720838771816,1.33772624,3133.8,3133.7,10.5977357]
[1720838772041,2.3092,3134.5,3134.3,2.2333]
[1720838772042,4.65013443,3134.5,3134.3,2.2333]
[1720838772219,1.1053177,3134.4,3134.3,3.0493]
[1720838772536,1.10531774,3134.4,3134.3,3.19204999]
[1720838774743,1.10531774,3134.4,3134.3,3.0493]
[1720838775122,2.34072646,3134.6,3134.4,2.23327]
[1720838775444,1.10527888,3134.5,3134.4,2.23327]
[1720838775629,1.10527888,3134.5,3134.4,3.04927]
[1720838776139,1.10527888,3134.5,3134.4,3.19179373]
[1720838778717,2.33978159,3134.7,3134.5,2.2332]
[1720838778944,1.10527713,3134.6,3134.5,2.2332]
[1720838779527,3.44505872,3134.6,3134.5,2.2332]
[1720838779922,1.10527713,3134.6,3134.5,2.2332]
[1720838782052,7.43,3134.8,3134.6,2.23313]
[1720838782252,3.44462083,3134.7,3134.6,3.04913]
[1720838782465,2.64349534,3135.0,3134.6,5.28221]
[1720838782752,1.10527524,3134.7,3134.6,3.04908]
[1720838785057,3.11006896,3134.7,3134.6,3.04908]
[1720838785258,4.64823831,3135.0,3134.8,2.23298]
[1720838785461,2.3092,3135.0,3134.8,2.23298]
[1720838785757,1.10514164,3134.9,3134.8,2.23298]
[1720838785942,1.10514164,3134.9,3134.8,3.04898]
[1720838787358,1.10514164,3134.9,3134.8,3.19110377]
[1720838788760,2.33816296,3135.1,3134.8,3.19110377]
[1720838789061,1.10514396,3135.0,3134.9,0.816]
[1720838789761,1.10514396,3135.0,3134.9,0.95795696]
[1720838792242,1.105133,3135.0,3134.9,0.95795696]
[1720838792670,9.8941,3135.3,3134.9,0.95795696]
[1720838792883,3.44292746,3135.2,3134.9,3.19086696]
[1720838793172,1.10513659,3135.1,3134.9,3.04891]
[1720838793358,1.10513659,3135.0,3134.9,3.04891]
[1720838795278,1.10512157,3135.0,3134.9,3.04891]
[1720838795573,3.10929579,3135.0,3134.9,3.04891]
[1720838798878,1.105118,3135.0,3134.9,3.04891]
[1720838799055,3.10940601,3135.0,3134.9,3.04891]
[1720838802085,1.105118,3135.0,3134.9,2.23291]
[1720838802257,2.4641,3135.3,3134.9,3.04891]
[1720838802487,1.10515201,3135.0,3134.9,3.04891]
[1720838802875,1.10515085,3135.0,3134.9,3.04891]
[1720838803098,3.11016706,3135.0,3134.9,3.04891]
[1720838803298,1.10515085,3135.0,3134.9,3.04891]
[1720838804174,3.11039395,3135.0,3134.9,3.04891]
[1720838805804,3.11082115,3135.0,3134.9,3.04891]
[1720838806010,3.11082135,3135.0,3134.9,3.04891]
[1720838806177,3.11082135,3135.0,3134.9,3.19085082]
[1720838806670,3.11080689,3135.0,3134.9,3.19085082]
[1720838806872,5.78591351,3135.0,3134.9,0.14194082]
[1720838807080,3.75694905,3135.0,3134.9,0.14194082]
[1720838808005,3.75694905,3135.0,3134.7,0.816]
[1720838808215,2.3401729,3134.8,3134.7,0.816]
[1720838808436,1.10506836,3134.8,3134.7,0.816]
[1720838809088,1.10526343,3134.8,3134.7,0.95809359]
[1720838811821,3.44716055,3134.8,3134.7,0.95809359]
[1720838812385,4.57351,3135.2,3134.7,0.95809359]
[1720838812588,2.76584772,3135.0,3134.7,0.95809359]
[1720838812793,1.10521585,3134.9,3134.7,0.95809359]
[1720838813088,3.44673263,3134.8,3134.7,0.95809359]
[1720838813700,1.10521585,3134.8,3134.7,0.95809359]
[1720838814121,3.44694973,3134.8,3134.7,0.95809359]
[1720838815689,3.44694973,3134.8,3134.7,1.50866395]
[1720838815914,10.88224431,3135.4,3134.7,3.74172395]
[1720838815915,2.34211827,3135.0,3134.7,3.74172395]
[1720838816215,1.10509956,3134.9,3134.8,2.23299]
[1720838816418,2.34215716,3135.1,3134.9,2.2329]
[1720838816616,2.34215716,3135.1,3135.0,0.816]
[1720838816797,1.10504952,3135.1,3135.0,0.816]
[1720838817001,3.44720668,3135.1,3135.0,0.816]
[1720838817213,3.44720668,3135.1,3135.0,3.19071404]
[1720838817385,1.10504952,3135.1,3135.0,5.94210344]
[1720838818546,1.10504952,3135.1,3135.0,8.17495344]
[1720838819095,7.43,3135.7,3135.3,2.23261]
[1720838819416,3.44709378,3135.6,3135.5,0.816]
[1720838819748,1.10494426,3135.6,3135.5,0.816]
[1720838819910,1.10494426,3135.6,3135.5,0.95743106]
[1720838821336,1.10494426,3135.6,3135.5,3.18992106]
[1720838821695,1.10488661,3135.6,3135.5,3.18992106]
[1720838821894,1.10488679,3135.6,3135.5,3.18992106]
[1720838822217,1.10488679,3135.6,3135.5,0.95743106]
[1720838823630,3.11071143,3135.6,3135.5,3.73217317]
[1720838824027,2.2671,3136.1,3135.5,3.73217317]
[1720838824337,2.00594117,3135.7,3135.5,2.37392106]
[1720838824493,2.00594117,3135.7,3135.6,0.816]
[1720838824695,3.11077178,3135.7,3135.6,5.40472]
[1720838824905,1.10483061,3135.7,3135.6,5.40472]
[1720838825105,2.3309,3136.3,3135.7,2.23235]
[1720838825456,1.10477699,3136.2,3136.0,0.816]
[1720838825651,1.10477699,3136.1,3136.0,0.816]
[1720838826461,1.10477699,3136.1,3136.0,0.95689589]
[1720838827914,3.37187699,3136.1,3136.0,0.14089589]
[1720838828114,5.71178021,3136.1,3136.0,0.14089589]
[1720838828443,4.17263701,3136.1,3136.0,0.14089282]
[1720838828672,4.17273315,3136.1,3136.0,0.14089282]
[1720838828808,4.17273315,3136.1,3135.8,0.816]
[1720838829005,2.33772783,3136.0,3135.8,0.816]
[1720838829209,1.10487362,3135.9,3135.4,2.23256]
[1720838829406,1.10487362,3135.9,3135.2,2.23265]
[1720838829407,2.00359409,3135.7,3135.5,2.23249]
[1720838829608,1.10487362,3135.6,3135.5,2.23249]
[1720838829949,1.10487362,3135.6,3135.5,3.04849]
[1720838831245,2.23209,3136.1,3135.5,3.04849]
[1720838831543,2.00345706,3135.8,3135.7,0.816]
[1720838831743,3.10830599,3135.8,3135.7,0.816]
[1720838831941,2.23202,3136.2,3135.7,0.816]
[1720838832122,3.10835933,3135.8,3135.7,0.816]
[1720838832720,1.10484319,3135.8,3135.7,3.1723]
[1720838833023,1.10484319,3135.8,3135.7,8.400711]
[1720838833341,2.44021329,3135.8,3135.7,8.400711]
[1720838833711,2.44015332,3135.8,3135.7,8.400711]
[1720838834331,2.44015332,3135.8,3135.7,3.04835]
[1720838834523,1.10484319,3135.8,3135.7,3.04835]
[1720838834935,1.10484319,3135.8,3135.7,5.2807]
[1720838835213,2.3309,3136.3,3135.8,2.23222]
[1720838835420,1.66877111,3135.9,3135.8,2.23222]
[1720838835749,2.77352426,3135.9,3135.8,3.04822]
[1720838836128,2.77352426,3135.9,3135.8,3.18916604]
[1720838838723,1.66877111,3135.9,3135.8,3.18916604]
[1720838838928,2.77355845,3135.9,3135.8,3.18916604]
[1720838839254,2.7734228,3135.9,3135.8,3.18916604]
[1720838841143,2.7734228,3135.9,3135.8,6.16751964]
[1720838841327,1.10476201,3135.9,3135.8,6.16751964]
[1720838841528,1.10473172,3135.9,3135.8,6.16751964]
[1720838842263,1.10473623,3135.9,3135.8,6.16751964]
[1720838843549,1.10473623,3135.9,3135.8,3.73131964]
[1720838844865,2.43932691,3135.9,3135.8,3.73131964]
[1720838845082,1.10473623,3135.9,3135.8,3.73131964]
[1720838845431,1.66847884,3136.0,3135.9,2.23221]
[1720838845738,1.10473795,3136.0,3135.9,2.82857596]
[1720838846047,1.10473795,3136.0,3135.9,2.96944528]
[1720838846242,2.4392594,3136.0,3135.9,2.96944528]
[1720838846631,2.4392594,3136.0,3135.9,7.63785528]
[1720838846632,1.10473795,3136.0,3135.9,7.63785528]
[1720838848822,1.39832145,3136.3,3135.9,3.17343528]
[1720838849022,1.39832145,3136.3,3136.2,3.048]
[1720838849264,2.50292608,3136.3,3136.2,3.18859253]
[1720838849557,1.39832145,3136.3,3136.2,3.18859253]
[1720838849761,2.50292925,3136.3,3136.2,3.18859253]
[1720838850866,2.50292925,3136.3,3136.2,3.34859253]
[1720838851683,2.50292925,3136.3,3136.2,1.11659253]
[1720838851684,0.0638,3136.3,3136.2,1.11659253]
[1720838851848,1.73137024,3136.3,3136.2,1.11659253]
[1720838852193,1.1684565,3136.3,3136.2,3.34859253]
[1720838852369,0.0638,3136.3,3136.2,3.34859253]
[1720838852687,1.16843017,3136.3,3136.2,3.34859253]
[1720838853070,2.83598081,3136.3,3136.2,0.30059253]
[1720838853372,1.16843017,3136.3,3136.2,1.11659253]
[1720838855664,1.16846643,3136.3,3136.2,1.11659253]
[1720838856129,3.17056305,3136.3,3136.2,1.11659253]
[1720838856328,8.48646936,3136.3,3136.2,0.30059253]
[1720838856532,11.82015213,3136.3,3136.2,0.30059253]
[1720838856771,11.82015213,3136.3,3136.2,0.16]
[1720838856949,9.48437274,3136.3,3136.2,0.16]
[1720838857866,11.71629274,3136.3,3136.2,0.16]
[1720838858965,10.61162631,3136.3,3136.2,0.16]
[1720838859171,11.71648062,3136.3,3136.2,0.16]
[1720838859579,11.71648267,3136.3,3136.2,0.16]
[1720838860150,14.47896265,3136.3,3136.2,0.16]
[1720838860473,15.02896265,3136.3,3136.2,0.16]
[1720838861382,12.26648267,3136.3,3136.2,0.16]
[1720838861746,12.26652286,3136.3,3136.2,0.16]
[1720838861950,14.49844286,3136.3,3136.2,0.1344]
[1720838862168,14.83257619,3136.3,3136.2,0.1344]
[1720838862380,14.83257619,3136.3,3136.2,0.1129]
[1720838863549,2.23243,3135.6,3135.2,0.816]
[1720838863754,3.44594216,3135.5,3135.2,0.798]
[1720838863973,1.10489655,3135.4,3135.2,0.798]
[1720838865652,2.00656138,3135.3,3135.2,0.798]
[1720838865849,3.1115357,3135.3,3135.2,0.798]
[1720838866065,3.11153569,3135.3,3135.2,0.798]
[1720838866995,1.10499648,3135.3,3135.2,0.798]
[1720838867586,1.10499648,3135.3,3135.2,0.93954053]
[1720838867764,3.11153569,3135.3,3135.2,1.05354053]
[1720838867965,1.10499648,3135.3,3135.2,1.05354053]
[1720838868673,2.23229,3135.8,3135.2,1.05354053]
[1720838868999,2.0060799,3135.5,3135.3,2.4233]
[1720838869166,1.10493583,3135.4,3135.3,2.4233]
[1720838869483,2.20978775,3135.4,3135.3,5.47194]
[1720838869684,2.20978775,3135.4,3135.3,6.253811]
[1720838869885,2.20975781,3135.4,3135.3,6.253811]
[1720838870387,2.20975781,3135.4,3135.3,8.486451]
[1720838870574,3.88159461,3135.4,3135.3,8.486451]
[1720838871586,2.20975781,3135.4,3135.3,8.486451]
[1720838872899,3.54723491,3135.4,3135.3,8.486451]
[1720838873384,3.5472209,3135.4,3135.3,8.486451]
[1720838873873,2.20975781,3135.4,3135.3,8.486451]
[1720838874674,1.10486463,3135.4,3135.3,8.486451]
[1720838874890,1.10486463,3135.4,3135.3,10.719091]
[1720838875196,1.67183622,3135.5,3135.3,10.719091]
[1720838875197,1.3374999,3135.7,3135.5,2.23249]
[1720838875500,1.10468868,3135.6,3135.5,4.46498]
[1720838875684,1.10468868,3135.6,3135.5,5.28098]
[1720838876018,1.67183622,3135.8,3135.7,2.4233]
[1720838876019,1.3374999,3135.8,3135.7,2.4233]
[1720838876289,1.3374999,3136.1,3136.0,2.23214]
[1720838876508,2.44201574,3136.1,3136.0,2.23214]
[1720838878267,2.44201574,3136.1,3136.0,4.46428]
[1720838878655,2.44201574,3136.1,3136.0,6.88758]
[1720838878906,0.0638,3136.3,3136.2,4.464]
[1720838879568,1.16821726,3136.3,3136.2,2.232]
[1720838879772,0.0638,3136.3,3136.2,3.048]
[1720838879985,2.06900028,3136.3,3136.2,0.816]
[1720838880180,3.1736013,3136.3,3136.2,0.816]
[1720838880380,3.49096143,3136.3,3136.2,0.816]
[1720838880591,1.48576115,3136.3,3136.0,3.04813]
[1720838880883,2.00515313,3136.1,3136.0,3.04813]
[1720838881086,3.10975415,3136.1,3136.0,3.04813]
[1720838881257,1.10460102,3136.1,3136.0,3.04813]
[1720838881663,3.10975415,3136.1,3136.0,3.04813]
[1720838881896,3.10978135,3136.1,3136.0,0.816]
[1720838882474,3.10941074,3136.1,3136.0,0.816]
[1720838884004,3.45846783,3136.1,3135.5,2.23246]
[1720838884204,0.34905709,3136.1,3135.8,0.816]
[1720838884417,3.10940883,3136.0,3135.8,0.816]
[1720838884581,2.35043599,3135.9,3135.8,0.816]
[1720838884903,1.10481943,3135.9,3135.8,0.816]
[1720838885404,1.10474391,3135.9,3135.8,0.816]
[1720838886215,1.10474391,3135.9,3135.8,3.04828]
[1720838887479,1.10474391,3135.9,3135.8,0.816]
[1720838887687,1.10474391,3135.9,3135.8,3.04828]
[1720838888785,1.10474463,3135.9,3135.8,3.04828]
[1720838892220,2.00480888,3136.1,3135.9,2.23218]
[1720838892532,0.0638,3136.3,3136.0,0.816]
[1720838892810,2.00486907,3136.1,3136.0,0.816]
[1720838892988,3.10960304,3136.1,3135.9,2.23218]
[1720838893181,2.00486907,3136.1,3136.0,0.816]
[1720838893374,1.10473695,3136.1,3136.0,0.816]
[1720838893785,3.10967561,3136.1,3136.0,0.816]
[1720838894111,1.10473695,3136.1,3136.0,0.816]
[1720838894509,3.10980969,3136.1,3136.0,0.816]
[1720838895011,2.00507274,3136.2,3136.0,3.04814]
[1720838895177,1.10465995,3136.1,3136.0,2.23214]
[1720838895379,1.10465995,3136.1,3136.0,3.04814]
[1720838895678,1.10465962,3136.1,3136.0,0.816]
[1720838895879,3.10987491,3136.1,3135.9,2.23221]
[1720838896206,2.32258278,3136.1,3136.0,0.95675824]
[1720838896420,3.42729696,3136.1,3136.0,0.95675824]
[1720838897603,1.42208167,3136.1,3136.0,0.95675824]
[1720838898928,1.42211711,3136.1,3136.0,0.95675824]
[1720838901730,3.42757803,3136.1,3136.0,0.95675824]
[1720838901894,3.11021098,3136.1,3136.0,0.95675824]
[1720838902101,0.0638,3136.3,3136.0,0.95675824]
[1720838902302,2.00540563,3136.1,3136.0,0.95675824]
[1720838902495,3.11012137,3136.1,3136.0,0.95675824]
[1720838902703,2.00544933,3136.1,3136.0,0.95675824]
[1720838903030,3.11015786,3136.1,3136.0,0.95675824]
[1720838903400,3.11016108,3136.1,3136.0,0.95675824]
[1720838904327,1.10470853,3136.1,3136.0,0.95675824]
[1720838904730,1.10470853,3136.1,3136.0,3.18889824]
[1720838904731,3.11004593,3136.1,3136.0,3.18889824]
[1720838904900,1.10470853,3136.1,3136.0,3.18889824]
[1720838905415,1.10463792,3136.1,3136.0,3.18889824]
[1720838905616,1.10463696,3136.1,3136.0,3.18889824]
[1720838906318,1.10463696,3136.1,3136.0,5.46699824]
[1720838907034,2.44170686,3136.1,3136.0,8.46906106]
[1720838907437,1.10463696,3136.1,3136.0,10.70120106]
[1720838909039,0.0638,3136.3,3136.2,4.464]
[1720838909241,1.16818589,3136.3,3136.2,5.28]
[1720838909441,1.16818589,3136.3,3136.2,6.18082196]